Workbook

Sheet Planilha Final
B1: Ministério da Integração Nacional
B2: Companhia de Desenvolvimento dos Vales do São Francisco e do Parnaíba
B3: Área de Revitalização das Bacias Hidrográficas
A4: OBRA: ESCOLA DE MESTRE QUEIJEIRO ARTESANAL (SÃO ROQUE DE MINAS/MG)
A5: DATA-BASE: JUNHO/2018 | F5: BDI Serviços: | G5: ='BDI SERV'!D23 -> 0.227879168
A6: PRAZO DE EXECUÇÃO: 180 DIAS | F6: BDI Materiais: | G6: ='BDI FORN'!D23 -> 0.1406935729
A7: ITEM | B7: DISCRIMINAÇÃO | C7: UNID. | D7: QUANT. | E7: P. UNITÁRIO | F7: P.UNIT.C/ BDI | G7: P. TOTAL | H7: =G119 -> 480373.25
A9: 1 | B9: SERVIÇOS PRELIMINARES E URBANIZAÇÃO
A10: 1.1 | B10: Mobilização / Desmobilização de equipamentos e pessoal | C10: vb | D10: 2 | E10: 1600.216 | F10: =ROUND((1+$G$5)*E10,2) -> 1964.87 | G10: =ROUND(D10*F10,2) -> 3929.74
A11: 1.2 | B11: Fornecimento e assentamento de placa de obra em chapa de aço galvanizado | C11: m² | D11: 6 | E11: 321.47 | F11: =ROUND((1+$G$5)*E11,2) -> 394.73 | G11: 2368.38
A12: 1.3 | B12: Aluguel de conteiner para canteiro de obras | C12: mês | D12: 6 | E12: 339.84 | F12: 417.28 | G12: 2503.68
A13: 1.4 | B13: Administração local de obra | C13: vb | D13: 1 | E13: 28233.6 | F13: 34667.45 | G13: 34667.45 | H13: =F13/G119 -> 0.07216773623
A14: 1.5 | B14: Locação convencional de obra com gabarito de tábuas corridas, pontaleteadas a cada 1,50m | C14: m² | D14: 450 | E14: 4.07 | F14: 5 | G14: 2250
A15: 1.6 | B15: Desmatamento e limpeza mecanizada de terreno, com árvores até 15cm | C15: m² | D15: 1600 | E15: 0.33 | F15: 0.41 | G15: 656
A16: 1.7 | B16: Escavação a céu aberto, incluindo carga, transporte e descarga de material de 1a categoria, DMT até 200m | C16: m³ | D16: 300 | E16: 7.44 | F16: 9.14 | G16: 2742
A17: 1.8 | B17: Execução e compactação de aterro com solo predominantemente argiloso - exclusive escavação, carga e transporte de solo | C17: m³ | D17: 300 | E17: 5.18 | F17: 6.36 | G17: 1908
A18: 1.9 | B18: Plantio de grama em placas | C18: m² | D18: 400 | E18: 7.3 | F18: 8.96 | G18: 3584
A19: 1.10 | B19: Portão para veículos em tela de arame galvanizado nº 12, malha 2" e moldura em tubo de aço, com duas folhas de abrir, incluso ferragens - fornecimento e instalação | C19: m² | D19: 9 | E19: 900.49 | F19: 1105.69 | G19: 9951.21
A20: 1.11 | B20: Meio fio em concreto moldado in loco, 11,5cm de base e 22cm de altura | C20: m | D20: 200 | E20: 20.14 | F20: 24.73 | G20: 4946
A21: 1.12 | B21: Calha em concreto simples, em meia cana, diâmetro 200mm | C21: m | D21: 100 | E21: 34.16 | F21: 41.94 | G21: 4194
A23: 2 | B23: FUNDAÇÕES E ESTRUTURA
A24: 2.1 | B24: Escavação manual de valas | C24: m³ | D24: 140 | E24: 54.47 | F24: =ROUND((1+$G$5)*E24,2) -> 66.88 | G24: =ROUND(D24*F24,2) -> 9363.2
A25: 2.2 | B25: Regularização de fundo de valas | C25: m² | D25: 120 | E25: 4.29 | F25: 5.27 | G25: 632.4
A26: 2.3 | B26: Lastro de concreto magro, consumo mínimo de cimento de 150kg/m³ | C26: m³ | D26: 5 | E26: 397.07 | F26: 487.55 | G26: 2437.75
A27: 2.4 | B27: Montagem e desmontagem de forma para estrutura em chapa de madeira compensada resinada, reaproveitamento 8x | C27: m² | D27: 620 | E27: 41.94 | F27: 51.5 | G27: 31930
A28: 2.5 | B28: Armação de estrutura convencional de concreto com aço CA-50 | C28: kg | D28: 4900 | E28: 6.39 | F28: 7.85 | G28: 38465
A29: 2.6 | B29: Concretagem de estruturas com concreto fck = 25MPa, com uso de baldes - lançamento, adensamento e acabamento | C29: m³ | D29: 65 | E29: 411.98 | F29: 505.86 | G29: 32880.9
A30: 2.7 | B30: Escoramento de formas com madeira de 3a qualidade, não aparelhada | C30: m³ | D30: 100 | E30: 10.63 | F30: 13.05 | G30: 1305
A31: 2.8 | B31: Laje pré-moldada para fôrro, sobrecarga 100kg/m², inclusive escoramento, capa de concreto fck = 20MPa e ferragem negativa | C31: m² | D31: 280 | E31: 66.98 | F31: 82.24 | G31: 23027.2
A32: 2.9 | B32: Reaterro manual de valas com compactação mecanizada | C32: m³ | D32: 110 | E32: 22.9 | F32: 28.12 | G32: 3093.2
A34: 3 | B34: ALVENARIA, REVESTIMENTO E ESQUADRIAS
A35: 3.1 | B35: Alvenaria de vedação com tijolo cerâmico furado 14x19x39cm (espessura 14cm) | C35: m² | D35: 650 | E35: 44.2 | F35: =ROUND((1+$G$5)*E35,2) -> 54.27 | G35: =ROUND(D35*F35,2) -> 35275.5
A36: 3.2 | B36: Emboço / Massa única em argamassa 1:2:8 aplicada manualmente | C36: m² | D36: 1400 | E36: 12.46 | F36: 15.3 | G36: 21420
A37: 3.3 | B37: Revestimento de paredes com cerâmica esmaltada 20x20cm | C37: m² | D37: 320 | E37: 37.7 | F37: 46.29 | G37: 14812.8
A38: 3.4 | B38: Pintura látex acrílico em paredes, duas demãos | C38: m² | D38: 1080 | E38: 6.92 | F38: 8.5 | G38: 9180
A39: 3.5 | B39: Alçapão em ferro - 70x70cm | C39: unid. | D39: 1 | E39: 147.44 | F39: 181.04 | G39: 181.04
A40: 3.6 | B40: Pintura esmalte sintético sobre superfície metálica, duas demãos | C40: m² | D40: 19 | E40: 22.58 | F40: 27.73 | G40: 526.87
A41: 3.7 | B41: Porta de abrir de aluminio, tipo veneziana, com guarnição - fornecimento e instalação | C41: m² | D41: 20 | E41: 517.89 | F41: 635.91 | G41: 12718.2
A42: 3.8 | B42: Janela de alumínio de correr, 2 folhas, fixação com argamassa, com vidros - fornecimento e instalação | C42: m² | D42: 24 | E42: 313.95 | F42: 385.49 | G42: 9251.76
A43: 3.9 | B43: Janela de aluminio de correr, com veneziana e vidro, fixação com argamassa - fornecimento e instalação | C43: m² | D43: 14.4 | E43: 665.45 | F43: 817.09 | G43: 11766.1
A44: 3.10 | B44: Janela de aluminio tipo Maxim-Ar, fixação com argamassa, com vidros - fornecimento e instalação | C44: m² | D44: 6.4 | E44: 514.75 | F44: 632.05 | G44: 4045.12
A45: 3.11 | B45: Porta de alumínio de abrir para vidro, 87 x 210cm, inclusive vidros - fornecimento e instalação | C45: unid. | D45: 4 | E45: 812.7 | F45: 997.9 | G45: 3991.6
A46: 3.12 | B46: Grade de ferro em barra chata 3/16" - fornecimento e instalação | C46: m² | D46: 30 | E46: 258.12 | F46: 316.94 | G46: 9508.2
A47: 3.13 | B47: Fornecimento e colocação de tela tipo mosquiteiro em aço inox, malha 14x14, fio 0,31mm, em perfil de alumínio, requadro de 2,0x1,20m, fixada com parafusos no vão das janelas | C47: unid. | D47: 5 | E47: 313.737128 | F47: 385.23 | G47: 1926.15
A48: 3.14 | B48: Divisória em granito cinza andorinha polido ou similar, e = 3cm, assentado com argamassa e arremate com cimento branco | C48: m² | D48: 14 | E48: 664.38 | F48: 815.78 | G48: 11420.92
A49: 3.15 | B49: Porta de madeira compensada e=10mm para cabine sanitária, 0,65 x 1,60m, inclusive dobradiças e fechadura com tarjeta "livre/ocupado" | C49: unid. | D49: 6 | E49: 234.34076 | F49: 287.74 | G49: 1726.44
A50: 3.16 | B50: Bancada em granito cinza andorinha ou similar, e=2,5cm, inclusive testeira e rodabancada - fornecimento e assentamento | C50: m² | D50: 12 | E50: 656.2003 | F50: 805.73 | G50: 9668.76
A52: 4 | B52: PISOS E COBERTURA
A53: 4.1 | B53: Revestimento cerâmico para piso com placas tipo esmaltada extra 45x45cm | C53: m² | D53: 250 | E53: 30.3 | F53: =ROUND((1+$G$5)*E53,2) -> 37.2 | G53: =ROUND(D53*F53,2) -> 9300
A54: 4.2 | B54: Execução de passeio ou piso de concreto moldado in loco, acabamento convencional, não armado | C54: m³ | D54: 10 | E54: 381.33 | F54: 468.23 | G54: 4682.3
A55: 4.3 | B55: Peitoril e soleira em granito, largura 15cm, espessura 2cm | C55: m | D55: 54 | E55: 83.72 | F55: 102.8 | G55: 5551.2
A56: 4.4 | B56: Trama de madeira composto de ripas, caibros e terças para telhados até 2 águas para telha cerâmica de encaixe | C56: m² | D56: 400 | E56: 48.54 | F56: 59.6 | G56: 23840
A57: 4.5 | B57: Telhamento com telha cerâmica com até 2 águas, inclusive transporte vertical | C57: m² | D57: 400 | E57: 21.49 | F57: 26.39 | G57: 10556
A58: 4.6 | B58: Forro de PVC, inclusive estrutura de fixação | C58: m² | D58: 250 | E58: 33.66 | F58: 41.33 | G58: 10332.5
A59: 4.7 | B59: Rodapé cerâmico de 7cm de altura com placas tipo esmaltada extra 45x45cm | C59: m | D59: 90 | E59: 5.24 | F59: 6.43 | G59: 578.7
A60: 4.8 | B60: Calha em chapa de aço galvanizado nº 24, desenvolvimento de 33cm | C60: m | D60: 70 | E60: 35.93 | F60: 44.12 | G60: 3088.4
A62: 5 | B62: INSTALAÇÕES ELÉTRICAS E HIDRO-SANITÁRIAS
A63: 5.1 | B63: Execução de instalações elétricas | C63: vb | D63: 1 | E63: 2253.2 | F63: =ROUND((1+$G$5)*E63,2) -> 2766.66 | G63: =ROUND(D63*F63,2) -> 2766.66
A64: 5.1.1 | B64: Padrão CEMIG aéreo, carga instalada até 10kw, bifásico | C64: unid. | D64: 1 | E64: 1070.52 | F64: 1314.47 | G64: =ROUND(D64*F64,2) -> 1314.47 | H64: SETOP
A65: 5.1.2 | B65: Caixa de passagem em alvenaria 40x40x50, fundo com brita e tampa | C65: unid. | D65: 5 | E65: 177.57 | F65: 218.03 | G65: =ROUND(D65*F65,2) -> 1090.15
F66: 0
A67: 5.2 | B67: Execução de instalações hidro-sanitárias (por unidade) | C67: vb | D67: 1 | E67: 2292 | F67: 2814.3 | G67: =ROUND(D67*F67,2) -> 2814.3
A68: 5.2.1 | B68: Caixa d'água em polietileno 1.000 litros com acessórios - fornecimento e instalação | C68: unid. | D68: 2 | E68: 698.65 | F68: 857.86 | G68: 1715.72
A69: 5.2.2 | B69: Caixa de inspeção em concreto pré-moldado, 60x60x60cm - fornecimento e instalação | C69: unid. | D69: 10 | E69: 385.27 | F69: 473.07 | G69: 4730.7
A70: 5.2.3 | B70: Cuba de embutir em aço inox média - fornecimento e instalação | C70: unid. | D70: 4 | E70: 132.7 | F70: 162.94 | G70: 651.76
A71: 5.2.4 | B71: Cuba de embutir oval em louça branca - fornecimento e instalação | C71: unid. | D71: 9 | E71: 121.25 | F71: 148.88 | G71: 1339.92
A72: 5.2.5 | B72: Tanque em mármore sintético suspenso 22L ou equivalente, inclusive válvula, torneira de metal e sifão flexível em PVC - fornecimento e instalação | C72: unid. | D72: 1 | E72: 205.32 | F72: 252.11 | G72: 252.11
A73: 5.2.6 | B73: Vaso sanitário sifonado com caixa acoplada em louça branca, inclusive engate flexível - fornecimento e instalação | C73: unid. | D73: 7 | E73: 412.97 | F73: 507.08 | G73: 3549.56
A74: 5.2.7 | B74: Tanque séptico em concreto pré-moldado, diâmetro interno 1,10m, altura 2,50m - Volume útil: 2.138,2L (5 contribuintes) | C74: unid. | D74: 1 | E74: 1065.9 | F74: 1308.8 | G74: 1308.8
A75: 5.2.8 | B75: Filtro anaeróbio retangular em alvenaria, 0,80 x 1,20 x 1,67m - Volume útil: 1.152L (5 contribuintes) | C75: unid. | D75: 1 | E75: 2724.78 | F75: 3345.7 | G75: 3345.7
A76: 5.2.9 | B76: Sumidouro em alvenaria, medidas internas 0,80 x 1,40 x 3,0m - área de infiltração de 13,2m² (5 contribuintes) | C76: unid. | D76: 1 | E76: 2731.44 | F76: 3353.88 | G76: 3353.88
A79: 6 | B79: FORNECIMENTOS DE MATERIAIS
A80: 6.1 | B80: Materiais elétricos
A81: 6.1.1 | B81: Cabo de cobre flexível, isolamento em PVC 450/750V, 1,5mm2 | C81: m | D81: 300 | E81: 0.64 | F81: =ROUND((1+$G$5)*E81,2) -> 0.79 | G81: =ROUND(D81*F81,2) -> 237
A82: 6.1.2 | B82: Cabo de cobre flexível, isolamento em PVC 450/750V, 2,5mm2 | C82: m | D82: 500 | E82: 1.02 | F82: 1.25 | G82: 625
A83: 6.1.3 | B83: Cabo de cobre flexível, isolamento em PVC 450/750V, 4mm2 | C83: m | D83: 300 | E83: 1.82 | F83: 2.23 | G83: 669
A84: 6.1.4 | B84: Cabo de cobre flexível, isolamento em PVC 450/750V, 10mm2 | C84: m | D84: 200 | E84: 4.36 | F84: 5.35 | G84: 1070
A85: 6.1.5 | B85: Caixa de passagem em PVC 4"x2" para eletroduto flexível | C85: unid. | D85: 40 | E85: 1.75 | F85: 2.15 | G85: 86
A86: 6.1.6 | B86: Curva 90º eletroduto PVC rosca 1.1/4" | C86: unid. | D86: 3 | E86: 3.48 | F86: 4.27 | G86: 12.81
A87: 6.1.7 | B87: Disjuntor bipolar tipo DIN, de 6 até 32A | C87: unid. | D87: 7 | E87: 52.75 | F87: 64.77 | G87: 453.39
A88: 6.1.8 | B88: Disjuntor monopolar tipo DIN, de 6 até 32A | C88: unid. | D88: 6 | E88: 9.2 | F88: 11.3 | G88: 67.8
A89: 6.1.9 | B89: Eletroduto corrugado PVC 3/4" | C89: m | D89: 90 | E89: 1.08 | F89: 1.33 | G89: 119.7
A90: 6.1.10 | B90: Eletroduto PVC rosca 1.1/4" | C90: m | D90: 60 | E90: 4.66 | F90: 5.72 | G90: 343.2
A91: 6.1.11 | B91: Interruptor simples + Tomada 2P+T 10A, 250V - conjunto montado para embutir 4"x2" (placa + suporte + módulos) | C91: unid. | D91: 18 | E91: 10.82 | F91: 13.29 | G91: 239.22
A92: 6.1.12 | B92: Lâmpada fluorescente compacta, branca, 15W, base E27 | C92: unid. | D92: 2 | E92: 8.57 | F92: 10.52 | G92: 21.04
A93: 6.1.13 | B93: Luminaria de sobrepor em chapa de aço para 2 lampadas fluorescentes 36W, aletada (proteção anti-queda), completa - lâmpada e reator inclusos | C93: unid. | D93: 30 | E93: 58.93 | F93: 72.36 | G93: 2170.8
A94: 6.1.14 | B94: Luminária tipo tartaruga em aluminio, com grade, para 1 lâmpada, base E27 | C94: unid. | D94: 2 | E94: 34.82 | F94: 42.75 | G94: 85.5
A95: 6.1.15 | B95: Quadro de distribuição com barramento terra / neutro, de embutir, para 8 disjuntores DIN | C95: unid. | D95: 2 | E95: 60.29 | F95: 74.03 | G95: 148.06
A96: 6.1.16 | B96: Tomada 2P+T 10A, 250V - conjunto montado para embutir 4"x2" (placa + suporte + módulos) | C96: unid. | D96: 22 | E96: 6.5 | F96: 7.98 | G96: 175.56
A98: 6.2 | B98: Materiais hidro-sanitários
A99: 6.2.1 | B99: Acabamento cromado para registro 3/4" | C99: unid. | D99: 6 | E99: 19.09 | F99: =ROUND((1+$G$5)*E99,2) -> 23.44 | G99: =ROUND(D99*F99,2) -> 140.64
A100: 6.2.2 | B100: Engate flexível plástico, 1/2" x 40cm | C100: unid. | D100: 13 | E100: 6.26 | F100: 7.69 | G100: 99.97
A101: 6.2.3 | B101: Joelho 45º PVC esgoto DN 40mm | C101: unid. | D101: 11 | E101: 1.22 | F101: 1.5 | G101: 16.5
A102: 6.2.4 | B102: Joelho 90º PVC soldável 25mm | C102: unid. | D102: 36 | E102: 0.54 | F102: 0.66 | G102: 23.76
A103: 6.2.5 | B103: Joelho 90º PVC soldável com bucha latão, 25mm x 1/2" | C103: unid. | D103: 14 | E103: 1.28 | F103: 1.57 | G103: 21.98
A104: 6.2.6 | B104: Ralo sifonado PVC cilindrico 100x40mm com grelha redonda branca | C104: unid. | D104: 11 | E104: 4.7 | F104: 5.77 | G104: 63.47
A105: 6.2.7 | B105: Registro gaveta bruto em latão forjado 3/4" | C105: unid. | D105: 6 | E105: 15.81 | F105: 19.41 | G105: 116.46
A106: 6.2.8 | B106: Sifão plástico, tipo copo, para pia ou lavatório, 1 x 1.1/2" | C106: unid. | D106: 13 | E106: 13.2 | F106: 16.21 | G106: 210.73
A107: 6.2.9 | B107: Tê PVC esgoto DN 40mm | C107: unid. | D107: 2 | E107: 2.1 | F107: 2.58 | G107: 5.16
A108: 6.2.10 | B108: Tê PVC soldável 25mm | C108: unid. | D108: 9 | E108: 0.9 | F108: 1.11 | G108: 9.99
A109: 6.2.11 | B109: Tê PVC soldável com bucha latão na bolsa central 25mm x 1/2" | C109: unid. | D109: 20 | E109: 6.8 | F109: 8.35 | G109: 167
A110: 6.2.12 | B110: Torneira cromada de mesa para tanque ou lavatório, 3/4" | C110: unid. | D110: 10 | E110: 42.29 | F110: 51.93 | G110: 519.3
A111: 6.2.13 | B111: Torneira clínica de mesa, bica alta com alavanca, acionamento com cotovelo, em metal cromado | C111: unid. | D111: 2 | E111: 109.9 | F111: 134.94 | G111: 269.88
A112: 6.2.14 | B112: Tubo PVC esgoto, série normal, DN 40mm | C112: m | D112: 24 | E112: 2.95 | F112: 3.62 | G112: 86.88
A113: 6.2.15 | B113: Tubo PVC esgoto, série normal, DN 50mm | C113: m | D113: 12 | E113: 5.07 | F113: 6.23 | G113: 74.76
A114: 6.2.16 | B114: Tubo PVC esgoto, série normal, DN 100mm | C114: m | D114: 120 | E114: 7.8 | F114: 9.58 | G114: 1149.6
A115: 6.2.17 | B115: Tubo PVC rígido soldável DN 25mm | C115: m | D115: 120 | E115: 2.42 | F115: 2.97 | G115: 356.4
A116: 6.2.18 | B116: Válvula em plástico branco para tanque ou lavatório de 1" | C116: unid. | D116: 9 | E116: 2.81 | F116: 3.45 | G116: 31.05
A117: 6.2.19 | B117: Válvula em plástico cromado tipo americana para pia de cozinha 3.12" x 1.1/2"" | C117: unid. | D117: 4 | E117: 13.89 | F117: 17.06 | G117: 68.24
A119: TOTAL GERAL DA OBRA COM BDI | G119: =SUM(G9:G118) -> 480373.25

Sheet CPU
A1: CODEVASF | B1: COMPOSIÇÃO DE PREÇO UNITÁRIO
A2: OBRA: | G2: DATA:
A3: SERVIÇO :Mobilização/Desmobilização de equipamentos e pessoal | G3: UNIDADE: | H3: gl
A4: EQUIPAMENTO
A5: DISCRIMINAÇÃO | B5: UNIDADE | C5: QUANT. | D5: PROD | E5: IMPROD | F5: P.UNIT. PROD | G5: P.UNIT. IMPR | H5: P.TOTAL
A6: Caminhão com carroceria fixa e guindauto para içamento de carga de até 5,5 ton.(inclusive motorista) | B6: h | C6: 12 | D6: 0.9 | E6: 0.1 | F6: 130.04 | G6: 29.82 | H6: =C6*D6*F6+C6*E6*G6 -> 1440.216
A7: SUB-TOTAL | H7: =SUM(H6:H6) -> 1440.216
A8: MATERIAL
A9: DISCRIMINAÇÃO | B9: UNIDADE | C9: QUANT. | G9: P.UNIT. | H9: P.TOTAL
A10: Passagem de ônibus | B10: unid. | C10: 2 | G10: 80 | H10: =C10*G10 -> 160
H11: =C11*G11 -> 0
A12: SUB-TOTAL | H12: =SUM(H10:H11) -> 160
A13: SERVIÇOS - COMPOSIÇÕES AUXILIARES
A14: DISCRIMINAÇÃO | B14: UNIDADE | C14: QUANT. | G14: P.UNIT. | H14: P.TOTAL
H15: =C15*G15 -> 0
A16: SUB-TOTAL | H16: =SUM(H15:H15) -> 0
A17: MÃO DE OBRA
A18: DISCRIMINAÇÃO | B18: UNIDADE | C18: QUANT. | G18: P.UNIT. | H18: P.TOTAL
H19: =C19*G19 -> 0
H20: =C20*G20 -> 0
A21: SUB-TOTAL | H21: =SUM(H19:H20) -> 0
A22: PRODUÇÃO DA EQUIPE | B22: 1 | C22: CUSTO | H22: =H21+H16+H12+H7 -> 1600.216
A23: TOTAL | H23: =H22/B22 -> 1600.216
A24: BDI % | H24: =1+'BDI SERV'!D23 -> 1.227879168
A25: TOTAL DO SERVIÇO - R$ | H25: =H23*H24 -> 1964.871891
A27: CODEVASF | B27: COMPOSIÇÃO DE PREÇO UNITÁRIO
A28: OBRA: | G28: DATA:
A29: SERVIÇO :Administração local | G29: UNIDADE: | H29: MÊS
A30: EQUIPAMENTO
A31: DISCRIMINAÇÃO | B31: UNIDADE | C31: QUANT. | D31: PROD | E31: IMPROD | F31: P.UNIT. PROD | G31: P.UNIT. IMPR | H31: P.TOTAL
H32: =C32*D32*F32+C32*E32*G32 -> 0
A33: SUB-TOTAL | H33: =SUM(H32:H32) -> 0
A34: MATERIAL
A35: DISCRIMINAÇÃO | B35: UNIDADE | C35: QUANT. | G35: P.UNIT. | H35: P.TOTAL
H36: =C36*G36 -> 0
H37: =C37*G37 -> 0
H38: =C38*G38 -> 0
A39: SUB-TOTAL | H39: =SUM(H36:H38) -> 0
A40: SERVIÇOS - COMPOSIÇÕES AUXILIARES
A41: DISCRIMINAÇÃO | B41: UNIDADE | C41: QUANT. | G41: P.UNIT. | H41: P.TOTAL
H42: =C42*G42 -> 0
A43: SUB-TOTAL | H43: =SUM(H42:H42) -> 0
A44: MÃO DE OBRA
A45: DISCRIMINAÇÃO | B45: UNIDADE | C45: QUANT. | G45: P.UNIT. | H45: P.TOTAL
A46: Encarregado Geral | B46: h | C46: 80 | G46: 34.7 | H46: =C46*G46 -> 2776
A47: Engenheiro | B47: h | C47: 24 | G47: 80.4 | H47: =C47*G47 -> 1929.6
A48: SUB-TOTAL | H48: =SUM(H46:H47) -> 4705.6
A49: PRODUÇÃO DA EQUIPE | B49: 1 | C49: CUSTO | H49: =H48+H43+H39+H33 -> 4705.6
A50: TOTAL | H50: =H49/B49 -> 4705.6
A51: BDI % | H51: =H24 -> 1.227879168
A52: TOTAL DO SERVIÇO - R$ | H52: =H50*H51 -> 5777.908213
A54: CODEVASF | B54: COMPOSIÇÃO DE PREÇO UNITÁRIO
A55: OBRA: | G55: DATA:
A56: SERVIÇO :Instalações Elétricas | G56: UNIDADE: | H56: GL
A57: EQUIPAMENTO
A58: DISCRIMINAÇÃO | B58: UNIDADE | C58: QUANT. | D58: PROD | E58: IMPROD | F58: P.UNIT. PROD | G58: P.UNIT. IMPR | H58: P.TOTAL
H59: =C59*D59*F59+C59*E59*G59 -> 0
A60: SUB-TOTAL | H60: =SUM(H59:H59) -> 0
A61: MATERIAL
A62: DISCRIMINAÇÃO | B62: UNIDADE | C62: QUANT. | G62: P.UNIT. | H62: P.TOTAL
A63: Fita isolante, etc... | B63: vb | C63: 1 | G63: 50 | H63: =C63*G63 -> 50
H64: =C64*G64 -> 0
H65: =C65*G65 -> 0
A66: SUB-TOTAL | H66: =SUM(H63:H65) -> 50
A67: SERVIÇOS - COMPOSIÇÕES AUXILIARES
A68: DISCRIMINAÇÃO | B68: UNIDADE | C68: QUANT. | G68: P.UNIT. | H68: P.TOTAL
H69: =C69*G69 -> 0
A70: SUB-TOTAL | H70: =SUM(H69:H69) -> 0
A71: MÃO DE OBRA
A72: DISCRIMINAÇÃO | B72: UNIDADE | C72: QUANT. | G72: P.UNIT. | H72: P.TOTAL
A73: Eletricista | B73: h | C73: 80 | G73: 16.18 | H73: =C73*G73 -> 1294.4
A74: Ajudante de Eletricista | B74: h | C74: 80 | G74: 11.36 | H74: =C74*G74 -> 908.8
A75: SUB-TOTAL | H75: =SUM(H73:H74) -> 2203.2
A76: PRODUÇÃO DA EQUIPE | B76: 1 | C76: CUSTO | H76: =H75+H70+H66+H60 -> 2253.2
A77: TOTAL | H77: =H76/B76 -> 2253.2
A78: BDI % | H78: =H24 -> 1.227879168
A79: TOTAL DO SERVIÇO - R$ | H79: =H77*H78 -> 2766.657341
A81: CODEVASF | B81: COMPOSIÇÃO DE PREÇO UNITÁRIO
A82: OBRA: | G82: DATA:
A83: SERVIÇO :Instalações Hidro-Sanitárias | G83: UNIDADE: | H83: GL
A84: EQUIPAMENTO
A85: DISCRIMINAÇÃO | B85: UNIDADE | C85: QUANT. | D85: PROD | E85: IMPROD | F85: P.UNIT. PROD | G85: P.UNIT. IMPR | H85: P.TOTAL
H86: =C86*D86*F86+C86*E86*G86 -> 0
A87: SUB-TOTAL | H87: =SUM(H86:H86) -> 0
A88: MATERIAL
A89: DISCRIMINAÇÃO | B89: UNIDADE | C89: QUANT. | G89: P.UNIT. | H89: P.TOTAL
A90: Cola PVC, lixa, veda-rosca, etc... | B90: vb | C90: 1 | G90: 80 | H90: =C90*G90 -> 80
H91: =C91*G91 -> 0
H92: =C92*G92 -> 0
A93: SUB-TOTAL | H93: =SUM(H90:H92) -> 80
A94: SERVIÇOS - COMPOSIÇÕES AUXILIARES
A95: DISCRIMINAÇÃO | B95: UNIDADE | C95: QUANT. | G95: P.UNIT. | H95: P.TOTAL
H96: =C96*G96 -> 0
A97: SUB-TOTAL | H97: =SUM(H96:H96) -> 0
A98: MÃO DE OBRA
A99: DISCRIMINAÇÃO | B99: UNIDADE | C99: QUANT. | G99: P.UNIT. | H99: P.TOTAL
A100: Bombeiro Hidráulico | B100: h | C100: 80 | G100: 16.18 | H100: =C100*G100 -> 1294.4
A101: Ajudante de Encanador | B101: h | C101: 80 | G101: 11.47 | H101: =C101*G101 -> 917.6
A102: SUB-TOTAL | H102: =SUM(H100:H101) -> 2212
A103: PRODUÇÃO DA EQUIPE | B103: 1 | C103: CUSTO | H103: =H102+H97+H93+H87 -> 2292
A104: TOTAL | H104: =H103/B103 -> 2292
A105: BDI % | H105: =H24 -> 1.227879168
A106: TOTAL DO SERVIÇO - R$ | H106: =H104*H105 -> 2814.299053
A107: CODEVASF | B107: COMPOSIÇÃO DE PREÇO UNITÁRIO
A108: OBRA: | G108: DATA:
A109: SERVIÇO: Porta de madeira compensada e=10mm para cabine sanitária, 0,65 x 1,60m, inclusive dobradiças e fechadura com tarjeta "livre/ocupado" | G109: UNIDADE: | H109: Unid.
A110: EQUIPAMENTO
A111: DISCRIMINAÇÃO | B111: UNIDADE | C111: QUANT. | D111: PROD | E111: IMPROD | F111: P.UNIT. PROD | G111: P.UNIT. IMPR | H111: P.TOTAL
H112: =C112*D112*F112+C112*E112*G112 -> 0
A113: SUB-TOTAL | H113: =SUM(H112:H112) -> 0
A114: MATERIAL
A115: DISCRIMINAÇÃO | B115: UNIDADE | C115: QUANT. | G115: P.UNIT. | H115: P.TOTAL
A116: PORTA DE MADEIRA, FOLHA LEVE, E = *35* MM, CAPA LISA EM HDF, ACABAMENTO MELAMINICO (11367) | B116: M2 | C116: =0.65*1.6*1.05 -> 1.092 | G116: 75.83 | H116: =C116*G116 -> 82.80636
A117: DOBRADICA EM ACO/FERRO, 3" X 2 1/2", E= 1,2 A 1,8 MM, SEM ANEL, CROMADO OU ZINCADO, TAMPA CHATA, COM PARAFUSOS (2433) | B117: UNIDADE | C117: 2 | G117: 14.36 | H117: =C117*G117 -> 28.72
A118: TARJETA TIPO LIVRE/OCUPADO PARA PORTA DE BANHEIRO (11457) | B118: UNIDADE | C118: 1 | G118: 22.36 | H118: =C118*G118 -> 22.36
H119: =C119*G119 -> 0
A120: SUB-TOTAL | H120: =SUM(H116:H119) -> 133.88636
A121: SERVIÇOS - COMPOSIÇÕES AUXILIARES
A122: DISCRIMINAÇÃO | B122: UNIDADE | C122: QUANT. | G122: P.UNIT. | H122: P.TOTAL
H123: =C123*G123 -> 0
A124: SUB-TOTAL | H124: =SUM(H123:H123) -> 0
A125: MÃO DE OBRA
A126: DISCRIMINAÇÃO | B126: UNIDADE | C126: QUANT. | G126: P.UNIT. | H126: P.TOTAL
A127: MARCENEIRO (12868) | B127: h | C127: 4.36 | G127: 16.18 | H127: =C127*G127 -> 70.5448
A128: AJUDANTE ESPECIALIZADO (0242) | B128: h | C128: 2.18 | G128: 13.72 | H128: =C128*G128 -> 29.9096
A129: SUB-TOTAL | H129: =SUM(H127:H128) -> 100.4544
A130: PRODUÇÃO DA EQUIPE | B130: 1 | C130: CUSTO | H130: =H129+H124+H120+H113 -> 234.34076
A131: TOTAL | H131: =H130/B130 -> 234.34076
A132: BDI % | H132: =H105 -> 1.227879168
A133: TOTAL DO SERVIÇO - R$ | H133: =H131*H132 -> 287.7421374
A134: CODEVASF | B134: COMPOSIÇÃO DE PREÇO UNITÁRIO
A135: OBRA: | G135: DATA:
A136: SERVIÇO :Bancada em granito cinza andorinha ou similar, e=2,5cm, inclusive testeira e rodabancada - fornecimento e assentamento | G136: UNIDADE: | H136: M2
A137: EQUIPAMENTO
A138: DISCRIMINAÇÃO | B138: UNIDADE | C138: QUANT. | D138: PROD | E138: IMPROD | F138: P.UNIT. PROD | G138: P.UNIT. IMPR | H138: P.TOTAL
H139: =C139*D139*F139+C139*E139*G139 -> 0
A140: SUB-TOTAL | H140: =SUM(H139:H139) -> 0
A141: MATERIAL
A142: DISCRIMINAÇÃO | B142: UNIDADE | C142: QUANT. | G142: P.UNIT. | H142: P.TOTAL
A143: GRANITO PARA BANCADA, POLIDO, TIPO ANDORINHA/ QUARTZ/ CASTELO/ CORUMBA OU OUTROS EQUIVALENTES DA REGIAO, E= *2,5* CM | B143: m2 | C143: 1.2 | G143: 483.01 | H143: =C143*G143 -> 579.612
A144: SUPORTE MAO-FRANCESA EM ACO, ABAS IGUAIS 40 CM, CAPACIDADE MINIMA 70 KG, BRANCO | B144: UNIDADE | C144: 2 | G144: 20.8 | H144: =C144*G144 -> 41.6
H145: =C145*G145 -> 0
A146: SUB-TOTAL | H146: =SUM(H143:H145) -> 621.212
A147: SERVIÇOS - COMPOSIÇÕES AUXILIARES
A148: DISCRIMINAÇÃO | B148: UNIDADE | C148: QUANT. | G148: P.UNIT. | H148: P.TOTAL
H149: =C149*G149 -> 0
A150: SUB-TOTAL | H150: =SUM(H149:H149) -> 0
A151: MÃO DE OBRA
A152: DISCRIMINAÇÃO | B152: UNIDADE | C152: QUANT. | G152: P.UNIT. | H152: P.TOTAL
A153: MARMORISTA/GRANITEIRO | B153: h | C153: 1.49 | G153: 16.53 | H153: =C153*G153 -> 24.6297
A154: SERVENTE | B154: h | C154: 0.98 | G154: 10.57 | H154: =C154*G154 -> 10.3586
A155: SUB-TOTAL | H155: =SUM(H153:H154) -> 34.9883
A156: PRODUÇÃO DA EQUIPE | B156: 1 | C156: CUSTO | H156: =H155+H150+H146+H140 -> 656.2003
A157: TOTAL | H157: =H156/B156 -> 656.2003
A158: BDI % | H158: =H132 -> 1.227879168
A159: TOTAL DO SERVIÇO - R$ | H159: =H157*H158 -> 805.7346784
A160: CODEVASF | B160: COMPOSIÇÃO DE PREÇO UNITÁRIO
A161: OBRA: | G161: DATA:
A162: SERVIÇO: Fornecimento e colocação de tela tipo mosquiteiro em aço inox, malha 14x14, fio 0,31mm, em perfil de aço galvanizado, requadro de 2,0x1,20m, fixada com parafusos no vão das janelas | G162: UNIDADE: | H162: Unid.
A163: EQUIPAMENTO
A164: DISCRIMINAÇÃO | B164: UNIDADE | C164: QUANT. | D164: PROD | E164: IMPROD | F164: P.UNIT. PROD | G164: P.UNIT. IMPR | H164: P.TOTAL
H165: =C165*D165*F165+C165*E165*G165 -> 0
A166: SUB-TOTAL | H166: =SUM(H165:H165) -> 0
A167: MATERIAL
A168: DISCRIMINAÇÃO | B168: UNIDADE | C168: QUANT. | G168: P.UNIT. | H168: P.TOTAL
A169: PERFIL DE ALUMINIO - QUADRADO 1/2" | B169: KG | C169: =(2*2+1.2*3)*0.19*2*1.1 -> 3.1768 | G169: 35.71 | H169: =C169*G169 -> 113.443528
A170: TELA MOSQUITEIRO EM AÇO INOX MALHA 14X14, FIO 0,31MM | B170: M² | C170: =2*1.2*1.1 -> 2.64 | G170: =499.9/10 -> 49.99 | H170: =C170*G170 -> 131.9736
A171: PARAFUSO COM BUCHA DE NYLON | B171: UNIDADE | C171: 10 | G171: 0.36 | H171: =C171*G171 -> 3.6
A172: SUB-TOTAL | H172: =SUM(H169:H171) -> 249.017128
A173: SERVIÇOS - COMPOSIÇÕES AUXILIARES
A174: DISCRIMINAÇÃO | B174: UNIDADE | C174: QUANT. | G174: P.UNIT. | H174: P.TOTAL
H175: =C175*G175 -> 0
A176: SUB-TOTAL | H176: =SUM(H175:H175) -> 0
A177: MÃO DE OBRA
A178: DISCRIMINAÇÃO | B178: UNIDADE | C178: QUANT. | G178: P.UNIT. | H178: P.TOTAL
A179: SERRALHEIRO | B179: h | C179: 4 | G179: 16.18 | H179: =C179*G179 -> 64.72
H180: =C180*G180 -> 0
A181: SUB-TOTAL | H181: =SUM(H179:H180) -> 64.72
A182: PRODUÇÃO DA EQUIPE | B182: 1 | C182: CUSTO | H182: =H181+H176+H172+H166 -> 313.737128
A183: TOTAL | H183: =H182/B182 -> 313.737128
A184: BDI % | H184: =H158 -> 1.227879168
A185: TOTAL DO SERVIÇO - R$ | H185: =H183*H184 -> 385.2312837

Sheet BDI SERV
A1: DETALHAMENTO DO BDI
A2: ARRANJOS PRODUTIVOS - SERVIÇOS
A4: Item | B4: Descrição dos serviços | C4: Preço de Venda (%) | D4: Custo Direto (%)
A6: 1 | B6: Administração Central (A) | D6: 0.03
A8: 2 | B8: Impostos e Taxas (I) | C8: =SUM(C9:C12) -> 0.0865
A9: 2.1 | B9: ISS (*) | C9: 0.05
A10: 2.2 | B10: PIS | C10: 0.0065
A11: 2.3 | B11: Cofins | C11: 0.03
A12: 2.4 | B12: CPRB (INSS) | C12: 0
A14: 3 | B14: Risco, seguro e garantia (R) | D14: =SUM(D15:D17) -> 0.0177
A15: 3.1 | B15: Risco | D15: 0.0097
A16: 3.2 | B16: Seguro | D16: 0.004
A17: 3.3 | B17: Garantia | D17: 0.004
A19: 4 | B19: Despesas Financeiras (DF) | D19: 0.01
A21: 5 | B21: Lucro (L) | D21: 0.06
A23: BDI (%): | D23: =(((1+(D6+D14))*(1+D19)*(1+D21)/(1-C8))-1) -> 0.227879168
A24: Fórmula do BDI, de acordo com Acórdão nº 2622/2013 - TCU/Plenárío:
A25: BDI (%) = (((1+(AC+S+R+G))*(1+DF)*(1+L)/(1-I))-1)*100
B28: Custo Direto (CD): | C28: 1000
B29: Preço de Venda (PV): | C29: =C28*(1+D23/1) -> 1227.879168
B31: ISS: | C31: =C9*C29 -> 61.3939584
B32: PIS: | C32: =C10*C29 -> 7.981214592
B33: Cofins: | C33: =C11*C29 -> 36.83637504
B34: CPRB: | C34: =C12*C29 -> 0
B35: Administração Central (AC): | C35: =D6*C28 -> 30
B36: Risco, seguro e garantia (R): | C36: =D14*C28 -> 17.7
B37: Despesas Financeiras (DF): | C37: =D19*(C28+C35+C36) -> 10.477
B38: Lucro (L): | C38: =D21*(C28+C35+C36+C37) -> 63.49062
A43: (*) OBS: ISS conforme Lei Complementar nº 017/2006 - Artigo 18 (consulta - Enilene: 37.3433-1228)

Sheet BDI FORN
A1: DETALHAMENTO DO BDI
A2: ARRANJOS PRODUTIVOS - FORNECIMENTO
A4: Item | B4: Descrição dos serviços | C4: Preço de Venda (%) | D4: Custo Direto (%)
A6: 1 | B6: Administração Central (A) | D6: 0.0275
A8: 2 | B8: Impostos e Taxas (I) | C8: =SUM(C9:C12) -> 0.0365
A9: 2.1 | B9: ISS | C9: 0
A10: 2.2 | B10: PIS | C10: 0.0065
A11: 2.3 | B11: Cofins | C11: 0.03
A12: 2.4 | B12: CPRB (INSS) | C12: 0
A14: 3 | B14: Risco, seguro e garantia (R) | D14: =SUM(D15:D17) -> 0.0104
A15: 3.1 | B15: Risco | D15: 0.0056
A16: 3.2 | B16: Seguro | D16: 0.0024
A17: 3.3 | B17: Garantia | D17: 0.0024
A19: 4 | B19: Despesas Financeiras (DF) | D19: 0.0085
A21: 5 | B21: Lucro (L) | D21: 0.05
A23: BDI (%): | D23: =(((1+(D6+D14))*(1+D19)*(1+D21)/(1-C8))-1) -> 0.1406935729
A24: Fórmula do BDI, de acordo com Acórdão nº 2622/2013 - TCU/Plenárío:
A25: BDI (%) = (((1+(AC+S+R+G))*(1+DF)*(1+L)/(1-I))-1)*100
B27: Custo Direto (CD): | C27: 1000
B28: Preço de Venda (PV): | C28: =C27*(1+D23/1) -> 1140.693573
B30: ISS: | C30: =C9*C28 -> 0
B31: PIS: | C31: =C10*C28 -> 7.414508224
B32: Cofins: | C32: =C11*C28 -> 34.22080719
B33: CPRB: | C33: =C12*C28 -> 0
B34: Administração Central (AC): | C34: =D6*C27 -> 27.5
B35: Risco, seguro e garantia (R): | C35: =D14*C27 -> 10.4
B36: Despesas Financeiras (DF): | C36: =D19*(C27+C34+C35) -> 8.82215
B37: Lucro (L): | C37: =D21*(C27+C34+C35+C36) -> 52.3361075

Sheet CRONOGRAMA
B1: Ministério da Integração Nacional
B2: Companhia de Desenvolvimento dos Vales do São Francisco e do Parnaíba
B3: Área de Revitalização das Bacias Hidrográficas
A4: OBRA: CONTRUÇÃO DA ESCOLA DE MESTRES QUEIJEIROS (SÃO ROQUE DE MINAS/MG)
A5: CRONOGRAMA FÍSICO-FINANCEIRO
A7: ITEM | B7: DISCRIMINAÇÃO | C7: MÊS 1 | D7: MÊS 2 | E7: MÊS 3 | F7: MÊS 4 | G7: MÊS 5 | H7: MÊS 6
A9: 1 | B9: SERVIÇOS PRELIMINARES E URBANIZAÇÃO
A10: 1.1 | B10: Mobilização / Desmobilização de pessoal
A11: 1.2 | B11: Fornecimento e assentamento de placa de obra em chapa de aço galvanizado
A12: 1.3 | B12: Aluguel de conteiner para canteiro de obras
A13: 1.4 | B13: Administração local de obra | I13: =#REF!/#REF! -> 
A14: 1.5 | B14: Locação convencional de obra com gabarito de tábuas corridas, pontaleteadas a cada 1,50m
A15: 1.6 | B15: Desmatamento e limpeza mecanixada de terreno, com árvores até 15cm
A16: 1.7 | B16: Corte e aterro compensado
A18: 2 | B18: FUNDAÇÕES E ESTRUTURA
A19: 2.1 | B19: Escavação manual de valas
A20: 2.2 | B20: Regularização de fundo de valas
A21: 2.3 | B21: Lastro de concreto magro, consumo mínimo de cimento de 150kg/m³
A22: 2.4 | B22: Montagem e desmontagem de forma para estrutura em chapa de madeira compensada resinada, e=17mm
A23: 2.5 | B23: Armação de estrutura convencional de concreto com aço CA-50
A24: 2.6 | B24: Concretagem de estruturas com concreto fck = 25MPa, com uso de baldes - lançamento, adensamento e acabamento
A25: 2.7 | B25: Escoramento de formas com madeira de 3a qualidade, não aparelhada
A26: 2.8 | B26: Laje pré-moldada para fôrro, sobrecarga 100kg/m², inclusive escoramento, capa de concreto fck = 20MPa e ferragem negativa
A27: 2.9 | B27: Reaterro manual de valas com compactação
A29: 3 | B29: ALVENARIA, REVESTIMENTO E ESQUADRIAS
A30: 3.1 | B30: Alvenaria de vedação com blocos de concreto 9x19x39cm (espessura 9cm)
A31: 3.2 | B31: Emboço / Massa única em argamassa 1:2:8 aplicada manualmente
A32: 3.3 | B32: Revestimento de paredes com cerâmica esmaltada 20x20cm
A33: 3.4 | B33: Pintura látex acrílico em paredes, duas demãos
A34: 3.5 | B34: Pintura Epóxi sobre alvenaria, duas demãos
A35: 3.6 | B35: Pintura esmalte sintético sobre superfície metálica, duas demãos
A36: 3.7 | B36: Porta em chapa metálica de abrir, com requadro e guarnição - completa
A37: 3.8 | B37: Janela basculante em aço, sem vidro
A38: 3.9 | B38: Vidro liso incolor, e = 3mm
A39: 3.10 | B39: Vidro temperado incolor, e=6mm
A41: 4 | B41: PISOS E COBERTURA
A42: 4.1 | B42: Piso em granilite ou marmorite, espessura 8mm, inclusive juntas de dilatação
A43: 4.2 | B43: Execução de passeio ou piso de concreto moldado in loco, acabamento convencional, não armado
A44: 4.3 | B44: Rodapé abaulado em marmorite, altura 10cm
A45: 4.4 | B45: Trama de madeira para telha de fibrocimento, inclusive montagem
A46: 4.5 | B46: Cobertura com telha ondulada de fibrocimento, espessura 6mm
A47: 4.6 | B47: Forro de PVC, inclusive estrutura de fixação
A48: 4.7 | B48: Rufo em chapa de aço galvanizado nº 24, corte de 25cm
A49: 4.8 | B49: Calha em chapa de aço galvanizado nº 24, desenvolvimento de 33cm
A51: 5 | B51: INSTALAÇÕES ELÉTRICAS E HIDRO-SANITÁRIAS
A52: 5.1 | B52: Execução de instalações elétricas (por unidade)
A53: 5.1.1 | B53: Padrão de entrada de energia aérea monofásica 50A, inclusive, poste, caixa de proteção para medidor e aterramento
A54: 5.1.2 | B54: Caixa de passagem em alvenaria 40x40x50, fundo com brita e tampa
A56: 5.2 | B56: Execução de instalações hidro-sanitárias (por unidade)
A57: 5.2.1 | B57: Caixa d'água em polietileno 500 litros com acessórios - fornecimento e instalação
A58: 5.2.2 | B58: Caixa de inspeção em concreto pré-moldado, 60x60x60cm - fornecimento e instalação
A59: 5.2.3 | B59: Fossa séptica em alvenaria de tijolo cerâmico, volume 1.500L, revestido internamente com massa única e impermeabilizante
A61: 6 | B61: FORNECIMENTOS DE MATERIAIS
A62: 6.1 | B62: Materiais elétricos
A63: 6.1.1 | B63: Abraçadeira tipo D com cunha em aço, para tubos 3/4"
A64: 6.1.2 | B64: Cabo de cobre flexível, isolamento em PVC 450/750V, 1,5mm2
A65: 6.1.3 | B65: Cabo de cobre flexível, isolamento em PVC 450/750V, 2,5mm2
A66: 6.1.4 | B66: Cabo de cobre flexível, isolamento em PVC 450/750V, 4mm2
A67: 6.1.5 | B67: Caixa de passagem em PVC 4"x2" para eletroduto flexível
A68: 6.1.6 | B68: Condulete de alumínio para eletroduto roscável 3/4"
A69: 6.1.7 | B69: Curva 90º eletroduto PVC rosca 1.1/4"
A70: 6.1.8 | B70: Curva 90º eletroduto PVC rosca 2"
A71: 6.1.9 | B71: Disjuntor bipolar tipo Nema 10A
A72: 6.1.10 | B72: Disjuntor monopolar tipo Nema 10A
A73: 6.1.11 | B73: Eletroduto corrugado PVC 3/4"
A74: 6.1.12 | B74: Eletroduto PVC rosca 1.1/4"
A75: 6.1.13 | B75: Eletroduto PVC rosca 2"
A76: 6.1.14 | B76: Eletroduto PVC rosca 3/4"
A77: 6.1.15 | B77: Interruptor simples + Tomada 2P+T 10A, 250V - conjunto montado para embutir 4"x2" (placa + suporte + módulos)
A78: 6.1.16 | B78: Interruptor simples 10A, 250V - conjunto montado para embutir 4"x2" (placa + suporte + módulos)
A79: 6.1.17 | B79: Lâmpada fluorescente compacta, branca, 15W, base E27
A80: 6.1.18 | B80: Luminaria de sobrepor em chapa de aço para 2 lampadas fluorescentes 36W, aletada, completa - lâmpada e reator inclusos
A81: 6.1.19 | B81: Luminária tipo tartaruga em aluminio, com grade, para 1 lâmpada, base E27
A82: 6.1.20 | B82: Quadro de distribuição sem barramento, de embutir, para 6 disjuntores Nema
A83: 6.1.21 | B83: Tomada 2P+T 10A, 250V - conjunto montado para embutir 4"x2" (placa + suporte + módulos)
A85: 6.2 | B85: Materiais hidro-sanitários
A86: 6.2.1 | B86: Acabamento cromado para registro 3/4"
A87: 6.2.2 | B87: Adaptador PVC soldável curto com bolsa e rosca 25mm x 3/4"
A88: 6.2.3 | B88: Adaptador PVC soldável com flange e anel de vedação 25mm x 3/4" para caixa d'água
A89: 6.2.4 | B89: Adaptador PVC soldável com flange e anel de vedação 32mm x 1" para caixa d'água
A90: 6.2.5 | B90: Joelho 45º PVC esgoto DN 40mm
A91: 6.2.6 | B91: Joelho 90º PVC soldável 25mm
A92: 6.2.7 | B92: Joelho 90º PVC soldável 32mm
A93: 6.2.8 | B93: Joelho 90º PVC soldável com bucha latão, 25mm x 3/4"
A94: 6.2.9 | B94: Ralo sifonado PVC cilindrico 100x40mm com grelha redonda branca
A95: 6.2.10 | B95: Registro esfera em PVC com volante, soldável, 25mm
A96: 6.2.11 | B96: Registro esfera em PVC com volante, soldável, 32mm
A97: 6.2.12 | B97: Registro gaveta bruto em latão forjado 3/4"
A98: 6.2.13 | B98: Tê PVC esgoto DN 40mm
A99: 6.2.14 | B99: Tê PVC soldável 25mm
A100: 6.2.15 | B100: Tê PVC soldável com bucha latão na bolsa central 25mm x 1/2"
A101: 6.2.16 | B101: Tê PVC soldável com bucha latão na bolsa central 25mm x 3/4"
A102: 6.2.17 | B102: Torneira cromada com bico para tanque 3/4"
A103: 6.2.18 | B103: Torneira metal amarelo com bico para jardim 3/4"
A104: 6.2.19 | B104: Tubo PVC esgoto, série normal, DN 40mm
A105: 6.2.20 | B105: Tubo PVC rígido soldável DN 25mm
A106: 6.2.21 | B106: Tubo PVC rígido soldável DN 32mm
